[Event "Late-Titled-Tuesday-Blitz-May-28-2024"]
[Site "Chess.com"]
[Date "2024.05.28"]
[Round "11"]
[White "Cuchulin"]
[Black "Caterpiller35"]
[Result "0-1"]
[WhiteElo "2257"]
[BlackElo "2462"]
[TimeControl "180+1"]
[EndTime "16:05:14 PDT"]
[Termination "Caterpiller35 won on time"]

1. d4 {[%clk 0:03:00.9]} 1... Nf6 {[%clk 0:02:47]} 2. Bf4 {[%clk 0:03:00.8]}
2... d5 {[%clk 0:02:45.7]} 3. e3 {[%clk 0:03:01.1]} 3... c5 {[%clk 0:02:45.8]}
4. Nc3 {[%clk 0:03:00.7]} 4... a6 {[%clk 0:02:44.4]} 5. Nf3 {[%clk 0:02:59.9]}
5... Nc6 {[%clk 0:02:41.4]} 6. Be2 {[%clk 0:02:58.3]} 6... Bg4 {[%clk
0:02:40.3]} 7. h3 {[%clk 0:02:55]} 7... Bxf3 {[%clk 0:02:39.7]} 8. Bxf3 {[%clk
0:02:55.2]} 8... e6 {[%clk 0:02:40.3]} 9. O-O {[%clk 0:02:53]} 9... cxd4 {[%clk
0:02:38.8]} 10. exd4 {[%clk 0:02:52.6]} 10... Bd6 {[%clk 0:02:39]} 11. Bxd6
{[%clk 0:02:49]} 11... Qxd6 {[%clk 0:02:39.9]} 12. a3 {[%clk 0:02:48.3]} 12...
O-O {[%clk 0:02:39.5]} 13. Na4 {[%clk 0:02:47.7]} 13... Rfc8 {[%clk 0:02:36.4]}
14. Nc5 {[%clk 0:02:41.2]} 14... b6 {[%clk 0:02:34.6]} 15. Nb3 {[%clk 0:02:39]}
15... Na5 {[%clk 0:02:29.8]} 16. Nxa5 {[%clk 0:02:37.1]} 16... bxa5 {[%clk
0:02:30.7]} 17. Qd2 {[%clk 0:02:31.5]} 17... Rab8 {[%clk 0:02:28.7]} 18. b3
{[%clk 0:02:26.6]} 18... a4 {[%clk 0:02:24.2]} 19. bxa4 {[%clk 0:02:03.7]} 19...
Rc4 {[%clk 0:02:23.6]} 20. Rab1 {[%clk 0:01:59.3]} 20... Rxa4 {[%clk 0:02:21.3]}
21. Rxb8+ {[%clk 0:01:58.7]} 21... Qxb8 {[%clk 0:02:20.1]} 22. Qc3 {[%clk
0:01:55.2]} 22... Rc4 {[%clk 0:02:18.6]} 23. Qd3 {[%clk 0:01:49]} 23... Qb2
{[%clk 0:02:13]} 24. Bd1 {[%clk 0:01:37]} 24... Rxd4 {[%clk 0:02:06.5]} 25. Qxa6
{[%clk 0:01:36.6]} 25... g6 {[%clk 0:02:04.4]} 26. a4 {[%clk 0:01:19.2]} 26...
Kg7 {[%clk 0:02:03.2]} 27. a5 {[%clk 0:01:19.2]} 27... Ra4 {[%clk 0:02:01.7]}
28. Qa7 {[%clk 0:00:48.7]} 28... Qb5 {[%clk 0:01:53.2]} 29. c4 {[%clk
0:00:46.4]} 29... Qxa5 {[%clk 0:01:49.7]} 30. Qxa5 {[%clk 0:00:42]} 30... Rxa5
{[%clk 0:01:50.6]} 31. cxd5 {[%clk 0:00:41.9]} 31... Rxd5 {[%clk 0:01:37.1]} 32.
Bf3 {[%clk 0:00:41]} 32... Rd2 {[%clk 0:01:36.8]} 33. Ra1 {[%clk 0:00:39.8]}
33... h5 {[%clk 0:01:35.6]} 34. h4 {[%clk 0:00:32.7]} 34... Rd4 {[%clk 0:01:32]}
35. g3 {[%clk 0:00:31.6]} 35... e5 {[%clk 0:01:32.3]} 36. Ra7 {[%clk 0:00:25.6]}
36... e4 {[%clk 0:01:32.1]} 37. Be2 {[%clk 0:00:25.5]} 37... Rd2 {[%clk
0:01:31.9]} 38. Bc4 {[%clk 0:00:25.4]} 38... Rd7 {[%clk 0:01:24.6]} 39. Ra8
{[%clk 0:00:20.2]} 39... Ng4 {[%clk 0:01:15.9]} 40. Be2 {[%clk 0:00:18.6]} 40...
Ne5 {[%clk 0:01:12.6]} 41. Re8 {[%clk 0:00:16.5]} 41... f6 {[%clk 0:01:09.7]}
42. Ra8 {[%clk 0:00:10.4]} 42... Rd2 {[%clk 0:01:07.3]} 43. Kf1 {[%clk
0:00:10.3]} 43... Rb2 {[%clk 0:01:05.3]} 44. Ra1 {[%clk 0:00:08.9]} 44... f5
{[%clk 0:01:04.1]} 45. Ra7+ {[%clk 0:00:06.5]} 45... Kf6 {[%clk 0:01:03.5]} 46.
Ra6+ {[%clk 0:00:05.1]} 46... Ke7 {[%clk 0:01:03.8]} 47. Ra5 {[%clk 0:00:03.8]}
47... Ke6 {[%clk 0:01:01.9]} 48. Ra6+ {[%clk 0:00:03.6]} 48... Kd5 {[%clk
0:01:02.2]} 49. Ra5+ {[%clk 0:00:03.5]} 49... Kd4 {[%clk 0:01:02.4]} 0-1

[Event "Late-Titled-Tuesday-Blitz-May-28-2024"]
[Site "Chess.com"]
[Date "2024.05.28"]
[Round "11"]
[White "TheAlienParty"]
[Black "Bilan_Danila"]
[Result "0-1"]
[WhiteElo "2401"]
[BlackElo "2572"]
[TimeControl "180+1"]
[EndTime "16:05:15 PDT"]
[Termination "Bilan_Danila won by checkmate"]

1. c4 {[%clk 0:02:58.3]} 1... c6 {[%clk 0:03:00.3]} 2. Nf3 {[%clk 0:02:57.5]}
2... d5 {[%clk 0:03:01.2]} 3. e3 {[%clk 0:02:57.6]} 3... Nf6 {[%clk 0:03:01.5]}
4. b3 {[%clk 0:02:57.6]} 4... Bf5 {[%clk 0:02:56.5]} 5. Bb2 {[%clk 0:02:57.5]}
5... e6 {[%clk 0:02:57.2]} 6. Be2 {[%clk 0:02:56.5]} 6... h6 {[%clk 0:02:57]} 7.
O-O {[%clk 0:02:55.8]} 7... Nbd7 {[%clk 0:02:57.1]} 8. d3 {[%clk 0:02:55.8]}
8... Bc5 {[%clk 0:02:56.3]} 9. Nbd2 {[%clk 0:02:55.4]} 9... O-O {[%clk
0:02:56.2]} 10. a3 {[%clk 0:02:54.4]} 10... a5 {[%clk 0:02:56.3]} 11. Qc2 {[%clk
0:02:54]} 11... Re8 {[%clk 0:02:55.2]} 12. Bc3 {[%clk 0:02:53.4]} 12... Qe7
{[%clk 0:02:54.3]} 13. e4 {[%clk 0:02:52.2]} 13... dxe4 {[%clk 0:02:47.4]} 14.
dxe4 {[%clk 0:02:48.8]} 14... Bg6 {[%clk 0:02:39.1]} 15. Ne5 {[%clk 0:02:40.4]}
15... Nxe5 {[%clk 0:02:34.5]} 16. Bxe5 {[%clk 0:02:40.1]} 16... Bxa3 {[%clk
0:02:34]} 17. Bxf6 {[%clk 0:02:37.4]} 17... gxf6 {[%clk 0:02:34.9]} 18. f4
{[%clk 0:02:29.8]} 18... f5 {[%clk 0:02:21.6]} 19. e5 {[%clk 0:02:27]} 19...
Rad8 {[%clk 0:02:21.7]} 20. Kh1 {[%clk 0:02:05.4]} 20... Rd7 {[%clk 0:02:16.3]}
21. Nb1 {[%clk 0:01:39.3]} 21... Bb4 {[%clk 0:02:12.9]} 22. Nc3 {[%clk
0:01:38.6]} 22... Red8 {[%clk 0:02:10.5]} 23. Rfd1 {[%clk 0:01:34.2]} 23... Qc5
{[%clk 0:01:35.9]} 24. Bf3 {[%clk 0:01:07.8]} 24... Qe3 {[%clk 0:01:27.1]} 25.
Ne2 {[%clk 0:00:45]} 25... Rd2 {[%clk 0:01:22.7]} 26. Rxd2 {[%clk 0:00:43.9]}
26... Rxd2 {[%clk 0:01:23.6]} 27. Qc1 {[%clk 0:00:42.3]} 27... Rxe2 {[%clk
0:01:10.7]} 28. Bxe2 {[%clk 0:00:41.7]} 28... Qxe2 {[%clk 0:01:11.6]} 29. Qd1
{[%clk 0:00:39.4]} 29... Qxd1+ {[%clk 0:01:01.3]} 30. Rxd1 {[%clk 0:00:38.8]}
30... Bh5 {[%clk 0:01:02.2]} 31. Rd7 {[%clk 0:00:36.8]} 31... b5 {[%clk
0:00:58.6]} 32. Rc7 {[%clk 0:00:29.3]} 32... bxc4 {[%clk 0:00:58]} 33. bxc4
{[%clk 0:00:28.8]} 33... c5 {[%clk 0:00:58]} 34. h3 {[%clk 0:00:12.6]} 34... Be2
{[%clk 0:00:56.6]} 35. Kh2 {[%clk 0:00:12.2]} 35... Bxc4 {[%clk 0:00:55.4]} 36.
g4 {[%clk 0:00:12.3]} 36... a4 {[%clk 0:00:48.8]} 37. g5 {[%clk 0:00:09.4]}
37... h5 {[%clk 0:00:44.9]} 38. Kg3 {[%clk 0:00:09.3]} 38... a3 {[%clk
0:00:44.4]} 39. Kh4 {[%clk 0:00:09.1]} 39... Be2 {[%clk 0:00:44.2]} 40. Ra7
{[%clk 0:00:07.1]} 40... Be1# {[%clk 0:00:43.7]} 0-1

[Event "Late-Titled-Tuesday-Blitz-May-28-2024"]
[Site "Chess.com"]
[Date "2024.05.28"]
[Round "11"]
[White "Oleksandr_Bortnyk"]
[Black "TigrVShlyape"]
[Result "1-0"]
[WhiteElo "3031"]
[BlackElo "2916"]
[TimeControl "180+1"]
[EndTime "16:05:19 PDT"]
[Termination "Oleksandr_Bortnyk won by resignation"]

1. e4 {[%clk 0:03:00.9]} 1... e5 {[%clk 0:02:58.8]} 2. Nf3 {[%clk 0:03:01]} 2...
Nc6 {[%clk 0:02:58.7]} 3. Bb5 {[%clk 0:03:01.2]} 3... Nf6 {[%clk 0:02:58.5]} 4.
d3 {[%clk 0:02:58.1]} 4... d6 {[%clk 0:02:58.1]} 5. Nc3 {[%clk 0:02:53]} 5...
Bd7 {[%clk 0:02:56.5]} 6. a3 {[%clk 0:02:51.8]} 6... g6 {[%clk 0:02:56]} 7. Bg5
{[%clk 0:02:47.6]} 7... h6 {[%clk 0:02:53.9]} 8. Be3 {[%clk 0:02:44.1]} 8... Bg7
{[%clk 0:02:53.5]} 9. Qd2 {[%clk 0:02:43.7]} 9... Ng4 {[%clk 0:02:52]} 10. h3
{[%clk 0:02:41.2]} 10... Nxe3 {[%clk 0:02:51.4]} 11. fxe3 {[%clk 0:02:42.1]}
11... a6 {[%clk 0:02:51.4]} 12. Bc4 {[%clk 0:02:42.1]} 12... Be6 {[%clk
0:02:41.9]} 13. Bxe6 {[%clk 0:02:22.7]} 13... fxe6 {[%clk 0:02:40.4]} 14. O-O-O
{[%clk 0:02:23.6]} 14... Qe7 {[%clk 0:02:37.8]} 15. d4 {[%clk 0:02:22.9]} 15...
exd4 {[%clk 0:02:36.1]} 16. exd4 {[%clk 0:02:22.4]} 16... O-O-O {[%clk
0:02:35.9]} 17. d5 {[%clk 0:02:10]} 17... exd5 {[%clk 0:02:25.3]} 18. exd5
{[%clk 0:02:06.5]} 18... Ne5 {[%clk 0:02:25.5]} 19. Rhe1 {[%clk 0:01:51.6]}
19... h5 {[%clk 0:02:06.9]} 20. Qf2 {[%clk 0:01:25]} 20... Kb8 {[%clk 0:01:57]}
21. Nd4 {[%clk 0:01:24.3]} 21... Qg5+ {[%clk 0:01:33.5]} 22. Kb1 {[%clk
0:01:23.9]} 22... Rdf8 {[%clk 0:01:33.3]} 23. Qg1 {[%clk 0:01:22.7]} 23... Qh4
{[%clk 0:01:14.4]} 24. Ne6 {[%clk 0:01:16.7]} 24... Rf7 {[%clk 0:01:14.6]} 25.
Re4 {[%clk 0:01:12.9]} 25... Qf6 {[%clk 0:01:04.7]} 26. Rb4 {[%clk 0:01:01.1]}
26... Bh6 {[%clk 0:00:50.3]} 27. Ne4 {[%clk 0:00:59.9]} 27... Qe7 {[%clk
0:00:48.9]} 28. Qd4 {[%clk 0:00:55.7]} 28... Re8 {[%clk 0:00:45.6]} 29. Qc3
{[%clk 0:00:50.6]} 29... Qd7 {[%clk 0:00:37.3]} 30. N4c5 {[%clk 0:00:27.7]}
30... dxc5 {[%clk 0:00:36.1]} 31. Nxc5 {[%clk 0:00:28.6]} 31... Qc8 {[%clk
0:00:33.2]} 32. Nxa6+ {[%clk 0:00:28.7]} 32... Ka8 {[%clk 0:00:31.8]} 33. Nc5
{[%clk 0:00:26.6]} 33... b6 {[%clk 0:00:30]} 34. Qb3 {[%clk 0:00:21.9]} 34...
Bf8 {[%clk 0:00:21]} 35. Ra4+ {[%clk 0:00:12.7]} 35... Kb8 {[%clk 0:00:20.9]}
36. Na6+ {[%clk 0:00:13.6]} 36... Kb7 {[%clk 0:00:19.7]} 37. d6 {[%clk 0:00:14]}
37... Qe6 {[%clk 0:00:14.2]} 38. Nc5+ {[%clk 0:00:12]} 1-0

[Event "Late-Titled-Tuesday-Blitz-May-28-2024"]
[Site "Chess.com"]
[Date "2024.05.28"]
[Round "11"]
[White "OIAM03"]
[Black "djjohnnywoo"]
[Result "1-0"]
[WhiteElo "2046"]
[BlackElo "2113"]
[TimeControl "180+1"]
[EndTime "16:05:23 PDT"]
[Termination "OIAM03 won by resignation"]

1. e4 {[%clk 0:02:59.7]} 1... g6 {[%clk 0:02:51.3]} 2. d4 {[%clk 0:02:58.8]}
2... Bg7 {[%clk 0:02:48.8]} 3. c4 {[%clk 0:02:58.8]} 3... d6 {[%clk 0:02:48.6]}
4. Nc3 {[%clk 0:02:58.6]} 4... c6 {[%clk 0:02:46.7]} 5. Nf3 {[%clk 0:02:57.7]}
5... Bg4 {[%clk 0:02:45.7]} 6. Be2 {[%clk 0:02:57.8]} 6... Nd7 {[%clk
0:02:44.8]} 7. h3 {[%clk 0:02:57.6]} 7... Bxf3 {[%clk 0:02:44.5]} 8. Bxf3 {[%clk
0:02:57.7]} 8... e5 {[%clk 0:02:45]} 9. Be3 {[%clk 0:02:55.4]} 9... Ngf6 {[%clk
0:02:43]} 10. O-O {[%clk 0:02:52.8]} 10... O-O {[%clk 0:02:42.4]} 11. Qd2 {[%clk
0:02:47.5]} 11... Re8 {[%clk 0:02:33.4]} 12. Rad1 {[%clk 0:02:43.2]} 12... Qa5
{[%clk 0:02:21.4]} 13. dxe5 {[%clk 0:01:42.9]} 13... dxe5 {[%clk 0:02:19]} 14.
Bh6 {[%clk 0:01:37.5]} 14... Bxh6 {[%clk 0:02:00]} 15. Qxh6 {[%clk 0:01:37.4]}
15... Nf8 {[%clk 0:02:00.6]} 16. Bg4 {[%clk 0:01:25.6]} 16... Qc5 {[%clk
0:01:53.4]} 17. b3 {[%clk 0:01:20.9]} 17... Rad8 {[%clk 0:01:45.2]} 18. Qg5
{[%clk 0:01:16.7]} 18... Rxd1 {[%clk 0:01:34.2]} 19. Rxd1 {[%clk 0:01:16.4]}
19... Nxg4 {[%clk 0:01:32.5]} 20. Qxg4 {[%clk 0:01:05.4]} 20... Qb4 {[%clk
0:01:07.9]} 21. Qf3 {[%clk 0:00:54.2]} 21... Qe7 {[%clk 0:00:57.6]} 22. Qd3
{[%clk 0:00:51.8]} 22... Qg5 {[%clk 0:00:46.7]} 23. Ne2 {[%clk 0:00:47.3]} 23...
Ne6 {[%clk 0:00:45]} 24. Qc3 {[%clk 0:00:37.2]} 24... Qh5 {[%clk 0:00:37]} 25.
Re1 {[%clk 0:00:20.5]} 25... Rd8 {[%clk 0:00:35.3]} 26. Ng3 {[%clk 0:00:19.4]}
26... Qg5 {[%clk 0:00:33.5]} 27. Qb4 {[%clk 0:00:16.5]} 27... Rd2 {[%clk
0:00:27.5]} 28. Qxb7 {[%clk 0:00:14.3]} 28... Rxf2 {[%clk 0:00:25.6]} 29. Kxf2
{[%clk 0:00:11.3]} 29... Qf4+ {[%clk 0:00:26.2]} 30. Kg1 {[%clk 0:00:10.6]}
30... Qxg3 {[%clk 0:00:26.7]} 31. Rf1 {[%clk 0:00:07.8]} 31... Qe3+ {[%clk
0:00:23.6]} 32. Kh1 {[%clk 0:00:07.4]} 32... Qg3 {[%clk 0:00:23.8]} 33. Qxf7+
{[%clk 0:00:04.9]} 33... Kh8 {[%clk 0:00:19.8]} 34. Qxe6 {[%clk 0:00:04.7]} 1-0

[Event "Late-Titled-Tuesday-Blitz-May-28-2024"]
[Site "Chess.com"]
[Date "2024.05.28"]
[Round "11"]
[White "WilsonPalencia21"]
[Black "Redzishchess"]
[Result "1-0"]
[WhiteElo "2584"]
[BlackElo "2460"]
[TimeControl "180+1"]
[EndTime "16:05:27 PDT"]
[Termination "WilsonPalencia21 won by resignation"]

1. d4 {[%clk 0:02:55.6]} 1... d5 {[%clk 0:02:57.1]} 2. c4 {[%clk 0:02:56.1]}
2... e6 {[%clk 0:02:57.5]} 3. Nf3 {[%clk 0:02:56.1]} 3... c6 {[%clk 0:02:56.9]}
4. Nc3 {[%clk 0:02:55.4]} 4... dxc4 {[%clk 0:02:53]} 5. a4 {[%clk 0:02:48.8]}
5... Nf6 {[%clk 0:02:49.1]} 6. Bg5 {[%clk 0:02:43.2]} 6... Nbd7 {[%clk
0:02:43.3]} 7. e3 {[%clk 0:02:37]} 7... Bb4 {[%clk 0:02:37.9]} 8. Bxc4 {[%clk
0:02:32.3]} 8... Qa5 {[%clk 0:02:37.8]} 9. Qd3 {[%clk 0:02:10.9]} 9... Ne4
{[%clk 0:02:19.9]} 10. Qxe4 {[%clk 0:02:05.5]} 10... Bxc3+ {[%clk 0:02:20.1]}
11. Ke2 {[%clk 0:01:54.1]} 11... Nb6 {[%clk 0:02:03.5]} 12. bxc3 {[%clk
0:01:41]} 12... Nxc4 {[%clk 0:02:01.2]} 13. Qd3 {[%clk 0:01:38.8]} 13... Nd6
{[%clk 0:01:23.2]} 14. Rhc1 {[%clk 0:01:24.3]} 14... b6 {[%clk 0:01:21.2]} 15.
c4 {[%clk 0:01:23.4]} 15... Ba6 {[%clk 0:01:21.3]} 16. Bf4 {[%clk 0:01:10.6]}
16... Rd8 {[%clk 0:01:14.8]} 17. Bxd6 {[%clk 0:01:04.7]} 17... Rxd6 {[%clk
0:01:14.7]} 18. Qc3 {[%clk 0:01:01.6]} 18... Qxc3 {[%clk 0:01:03]} 19. Rxc3
{[%clk 0:01:00.8]} 19... Ke7 {[%clk 0:01:01.9]} 20. a5 {[%clk 0:01:00.7]} 20...
b5 {[%clk 0:01:02.2]} 21. c5 {[%clk 0:00:49.5]} 21... b4+ {[%clk 0:00:58.4]} 22.
Kd1 {[%clk 0:00:47.1]} 22... bxc3 {[%clk 0:00:51.8]} 23. cxd6+ {[%clk
0:00:46.7]} 23... Kxd6 {[%clk 0:00:52.7]} 24. Kc2 {[%clk 0:00:47]} 24... Rb8
{[%clk 0:00:46.5]} 25. Kxc3 {[%clk 0:00:45.8]} 25... f6 {[%clk 0:00:45.9]} 26.
Nd2 {[%clk 0:00:45.4]} 26... h5 {[%clk 0:00:39.6]} 27. Ne4+ {[%clk 0:00:45]}
27... Ke7 {[%clk 0:00:31.3]} 28. Nc5 {[%clk 0:00:43.4]} 28... Bb5 {[%clk
0:00:25.8]} 29. f4 {[%clk 0:00:39.6]} 29... g5 {[%clk 0:00:25.3]} 30. g3 {[%clk
0:00:37.2]} 30... h4 {[%clk 0:00:22.4]} 31. fxg5 {[%clk 0:00:31.5]} 31... fxg5
{[%clk 0:00:21.2]} 32. gxh4 {[%clk 0:00:31.8]} 32... gxh4 {[%clk 0:00:22.1]} 33.
Rg1 {[%clk 0:00:30.4]} 33... Rf8 {[%clk 0:00:20.5]} 34. Rg7+ {[%clk 0:00:28.9]}
34... Rf7 {[%clk 0:00:20.2]} 35. Rxf7+ {[%clk 0:00:27]} 35... Kxf7 {[%clk
0:00:21.1]} 36. e4 {[%clk 0:00:26.3]} 36... Kf6 {[%clk 0:00:19.7]} 37. Kd2
{[%clk 0:00:26.5]} 37... e5 {[%clk 0:00:15.1]} 38. Nd7+ {[%clk 0:00:26.5]} 38...
Kg5 {[%clk 0:00:13.6]} 39. dxe5 {[%clk 0:00:18.9]} 39... Kf4 {[%clk 0:00:13]}
40. e6 {[%clk 0:00:18.6]} 40... Kxe4 {[%clk 0:00:12.1]} 41. e7 {[%clk
0:00:18.7]} 41... c5 {[%clk 0:00:12.6]} 42. e8=Q+ {[%clk 0:00:18.7]} 1-0

[Event "Late-Titled-Tuesday-Blitz-May-28-2024"]
[Site "Chess.com"]
[Date "2024.05.28"]
[Round "11"]
[White "Bala-Afiada"]
[Black "PNEPaul"]
[Result "1-0"]
[WhiteElo "2034"]
[BlackElo "1920"]
[TimeControl "180+1"]
[EndTime "16:05:27 PDT"]
[Termination "Bala-Afiada won by resignation"]

1. d4 {[%clk 0:03:00.9]} 1... Nf6 {[%clk 0:02:48.8]} 2. c4 {[%clk 0:03:00.2]}
2... c5 {[%clk 0:02:48.4]} 3. d5 {[%clk 0:02:59.8]} 3... Ne4 {[%clk 0:02:48.3]}
4. Qc2 {[%clk 0:02:48.9]} 4... Qa5+ {[%clk 0:02:47.5]} 5. Nd2 {[%clk 0:02:27.3]}
5... Nf6 {[%clk 0:02:45.9]} 6. Nf3 {[%clk 0:02:22.6]} 6... d6 {[%clk 0:02:45.9]}
7. e3 {[%clk 0:02:23]} 7... g6 {[%clk 0:02:45.8]} 8. Bd3 {[%clk 0:02:22.3]} 8...
Bg7 {[%clk 0:02:45.9]} 9. O-O {[%clk 0:02:21.8]} 9... O-O {[%clk 0:02:45.6]} 10.
Ne4 {[%clk 0:02:17.9]} 10... Nxe4 {[%clk 0:02:39.1]} 11. Bxe4 {[%clk 0:02:18.8]}
11... Nd7 {[%clk 0:02:28.5]} 12. Bd2 {[%clk 0:02:18.1]} 12... Qd8 {[%clk
0:02:28.2]} 13. Bc3 {[%clk 0:02:15.5]} 13... Nf6 {[%clk 0:02:28.1]} 14. Bd3
{[%clk 0:02:12.9]} 14... Bg4 {[%clk 0:02:19]} 15. Nd2 {[%clk 0:02:11]} 15... a6
{[%clk 0:02:10.3]} 16. f3 {[%clk 0:02:10.4]} 16... Bd7 {[%clk 0:02:10]} 17. e4
{[%clk 0:02:09.8]} 17... b5 {[%clk 0:02:07.6]} 18. b3 {[%clk 0:02:02.9]} 18...
b4 {[%clk 0:02:05.1]} 19. Bb2 {[%clk 0:02:02.7]} 19... a5 {[%clk 0:02:05.4]} 20.
h3 {[%clk 0:02:01]} 20... Qc7 {[%clk 0:02:01.7]} 21. f4 {[%clk 0:02:00.3]} 21...
a4 {[%clk 0:01:55.1]} 22. Rae1 {[%clk 0:01:58.2]} 22... axb3 {[%clk 0:01:51.7]}
23. axb3 {[%clk 0:01:59.1]} 23... Ra2 {[%clk 0:01:50.2]} 24. Ra1 {[%clk
0:01:52.9]} 24... Rfa8 {[%clk 0:01:48.7]} 25. Rxa2 {[%clk 0:01:52.7]} 25... Rxa2
{[%clk 0:01:48.2]} 26. Qb1 {[%clk 0:01:36.9]} 26... Ra8 {[%clk 0:01:21.9]} 27.
e5 {[%clk 0:01:35.3]} 27... Ne8 {[%clk 0:01:14.4]} 28. Nf3 {[%clk 0:01:22.4]}
28... Qc8 {[%clk 0:00:58.8]} 29. Kh2 {[%clk 0:01:19.6]} 29... Bf5 {[%clk
0:00:53.5]} 30. Bxf5 {[%clk 0:01:11.7]} 30... Qxf5 {[%clk 0:00:52.3]} 31. Qxf5
{[%clk 0:01:11.5]} 31... gxf5 {[%clk 0:00:51.3]} 32. Ra1 {[%clk 0:01:09.2]}
32... Rxa1 {[%clk 0:00:49.7]} 33. Bxa1 {[%clk 0:01:10.1]} 33... Nc7 {[%clk
0:00:34.2]} 34. Nh4 {[%clk 0:00:58]} 34... dxe5 {[%clk 0:00:29.3]} 35. fxe5
{[%clk 0:00:55.8]} 35... Bh6 {[%clk 0:00:16.9]} 36. Nxf5 {[%clk 0:00:46.2]}
36... Bf8 {[%clk 0:00:15.6]} 37. d6 {[%clk 0:00:34.3]} 37... exd6 {[%clk
0:00:13.2]} 38. exd6 {[%clk 0:00:34.2]} 38... Ne6 {[%clk 0:00:11.8]} 39. Bf6
{[%clk 0:00:27.5]} 39... h5 {[%clk 0:00:05.4]} 40. d7 {[%clk 0:00:24.8]} 1-0

[Event "Late-Titled-Tuesday-Blitz-May-28-2024"]
[Site "Chess.com"]
[Date "2024.05.28"]
[Round "11"]
[White "ChadBiryani"]
[Black "ozates"]
[Result "0-1"]
[WhiteElo "2540"]
[BlackElo "2629"]
[TimeControl "180+1"]
[EndTime "16:05:31 PDT"]
[Termination "ozates won on time"]

1. c4 {[%clk 0:03:00.9]} 1... e5 {[%clk 0:02:50]} 2. g3 {[%clk 0:02:58.4]} 2...
Nf6 {[%clk 0:02:49.3]} 3. Bg2 {[%clk 0:02:58.6]} 3... h6 {[%clk 0:02:49.9]} 4.
Nc3 {[%clk 0:02:45.9]} 4... Bb4 {[%clk 0:02:45.5]} 5. Nf3 {[%clk 0:02:38]} 5...
Bxc3 {[%clk 0:02:44.3]} 6. bxc3 {[%clk 0:02:35.3]} 6... d6 {[%clk 0:02:42.4]} 7.
O-O {[%clk 0:02:32.1]} 7... O-O {[%clk 0:02:40.7]} 8. d4 {[%clk 0:02:29.1]} 8...
Nbd7 {[%clk 0:02:38.3]} 9. Ba3 {[%clk 0:02:24.5]} 9... Re8 {[%clk 0:02:38.1]}
10. e3 {[%clk 0:02:21]} 10... Rb8 {[%clk 0:02:27.9]} 11. Nd2 {[%clk 0:02:03.4]}
11... a6 {[%clk 0:02:27]} 12. Rb1 {[%clk 0:01:57.1]} 12... b6 {[%clk 0:02:15.2]}
13. c5 {[%clk 0:01:50.5]} 13... dxc5 {[%clk 0:02:11.7]} 14. dxc5 {[%clk
0:01:48.2]} 14... b5 {[%clk 0:02:03]} 15. c6 {[%clk 0:01:47.4]} 15... Nb6 {[%clk
0:01:57.9]} 16. Qc2 {[%clk 0:01:42.9]} 16... Be6 {[%clk 0:01:47.2]} 17. Rfd1
{[%clk 0:01:38.1]} 17... Qc8 {[%clk 0:01:47.2]} 18. Bc5 {[%clk 0:01:17.9]} 18...
Bh3 {[%clk 0:01:35.9]} 19. Bh1 {[%clk 0:01:16.2]} 19... Bf5 {[%clk 0:01:34.4]}
20. Ne4 {[%clk 0:01:03.8]} 20... Nxe4 {[%clk 0:01:23.4]} 21. Bxe4 {[%clk
0:01:02.6]} 21... Be6 {[%clk 0:01:21.4]} 22. h4 {[%clk 0:00:46.4]} 22... f5
{[%clk 0:01:20.4]} 23. Bg2 {[%clk 0:00:44]} 23... f4 {[%clk 0:01:13.9]} 24. exf4
{[%clk 0:00:38.8]} 24... exf4 {[%clk 0:01:14.8]} 25. Re1 {[%clk 0:00:26.8]}
25... fxg3 {[%clk 0:01:12.8]} 26. fxg3 {[%clk 0:00:26.3]} 26... Nc4 {[%clk
0:01:08.6]} 27. Qg6 {[%clk 0:00:20]} 27... Bf7 {[%clk 0:01:06.2]} 28. Qd3 {[%clk
0:00:19.8]} 28... Qg4 {[%clk 0:01:03.9]} 29. Kh2 {[%clk 0:00:16.9]} 29... Bg6
{[%clk 0:01:03.8]} 30. Qd5+ {[%clk 0:00:15.1]} 30... Kh7 {[%clk 0:01:03.3]} 31.
Rxe8 {[%clk 0:00:14.9]} 31... Rxe8 {[%clk 0:01:04]} 32. Rf1 {[%clk 0:00:14.2]}
32... Re2 {[%clk 0:01:01.8]} 33. Rf8 {[%clk 0:00:12.4]} 33... Re6 {[%clk
0:00:37.8]} 34. Bd4 {[%clk 0:00:08.7]} 34... Nd6 {[%clk 0:00:32.7]} 35. Rd8
{[%clk 0:00:04.2]} 35... Be4 {[%clk 0:00:28.8]} 36. Bxe4+ {[%clk 0:00:04]} 36...
Nxe4 {[%clk 0:00:29.7]} 37. Rf8 {[%clk 0:00:02.8]} 37... Qxg3+ {[%clk
0:00:29.1]} 38. Kh1 {[%clk 0:00:03.5]} 38... Qh3+ {[%clk 0:00:25.5]} 39. Kg1
{[%clk 0:00:03.3]} 39... Rg6+ {[%clk 0:00:26.2]} 40. Qg5 {[%clk 0:00:01]} 40...
Nxg5 {[%clk 0:00:23.6]} 41. hxg5 {[%clk 0:00:01.9]} 41... Rxg5+ {[%clk
0:00:23.2]} 0-1